fUSD/lending_fUSD_20260525
["ID","MTS","AMOUNT","RATE_DAILY","PERIOD"]
[422955720,1779672645000,-210.77144088,0.000149,2]
[422955721,1779672645000,-25000.0,0.000149,3]
[422955725,1779672645000,-15191.59841545,0.000149,2]
[422955722,1779672645000,-16754.8107709,0.000149,3]
[422955716,1779672645000,-25000.0,0.00014882,3]
[422955723,1779672645000,-4590.74720352,0.000149,2]
[422955717,1779672645000,-6406.76961143,0.00014887,2]
[422955719,1779672645000,-25000.0,0.00014891,3]
[422955718,1779672645000,-300.0,0.0001489,2]
[422955724,1779672645000,-6406.76961143,0.000149,2]
[422955715,1779672645000,-300.0,0.00014881,2]
[422955726,1779672645000,-408.61717279,0.000149,3]
[422955727,1779672645000,-19471.48088338,0.000149,2]
[422955731,1779672645000,-308.24725454,0.0001499,2]
[422955728,1779672645000,-139227.5230248,0.00014974,2]
[422955729,1779672645000,-7981.4805084,0.00014974,2]
[422955733,1779672645000,-300.0,0.00014999,2]
[422955735,1779672645000,-666.0,0.00014999,2]
[422955732,1779672645000,-151.0,0.00014997,2]
[422955736,1779672645000,-300.0,0.00014999,2]
[422955737,1779672645000,-1222271.62837788,0.00015,2]
[422955686,1779672645000,-205.903696,0.00014614,2]
[422955711,1779672645000,-666.0,0.00014873,2]
[422955710,1779672645000,-300.0,0.00014873,2]
[422955730,1779672645000,-308.24725454,0.0001499,2]
[422955713,1779672645000,-25000.0,0.00014874,3]
[422955700,1779672645000,-1000.0,0.000148,2]
[422955696,1779672645000,-440.744825,0.00014614,2]
[422955689,1779672645000,-871.485589,0.00014614,2]
[422955687,1779672645000,-871.485589,0.00014614,2]
[422955693,1779672645000,-871.485589,0.00014614,2]
[422955690,1779672645000,-370.175217,0.00014614,2]
[422955699,1779672645000,-403.99,0.000147,2]
[422955695,1779672645000,-440.744825,0.00014614,2]
[422955688,1779672645000,-370.175217,0.00014614,2]
[422955697,1779672645000,-440.744825,0.00014614,2]
[422955692,1779672645000,-370.175217,0.00014614,2]
[422955698,1779672645000,-440.744825,0.00014614,2]
[422955694,1779672645000,-370.175217,0.00014614,2]
[422955702,1779672645000,-4357.9166262,0.00014818,2]
[422955703,1779672645000,-25000.0,0.0001483,3]
[422955704,1779672645000,-25000.0,0.00014838,3]
[422955734,1779672645000,-300.0,0.00014999,2]
[422955701,1779672645000,-30466.1883647,0.00014818,2]
[422955705,1779672645000,-25000.0,0.00014847,3]
[422955709,1779672645000,-25000.0,0.00014865,3]
[422955706,1779672645000,-308.16,0.00014852,2]
[422955712,1779672645000,-300.0,0.00014873,2]
[422955707,1779672645000,-350.0,0.00014853,2]
[422955691,1779672645000,-871.485589,0.00014614,2]
[422955708,1779672645000,-25000.0,0.00014856,3]
[422955740,1779672646000,-188.199327,0.00012905,2]
[422955739,1779672646000,-39108.1417771,0.00015,2]
[422955741,1779672646000,-464.67253582,0.00015,2]
[422955742,1779672646000,-514.07266405,0.00015,2]
[422955743,1779672646000,-665.0,0.00015,2]
[422955745,1779672646000,-529.80780789,0.00015,2]
[422955747,1779672646000,-505.0,0.00015,2]
[422955744,1779672646000,-301.36111661,0.00015,2]
[422955757,1779673155000,161.45,6.636e-05,2]
[422955759,1779673156000,161.45,7.963e-05,2]
[422955758,1779673156000,161.45,7.3e-05,2]
[422955789,1779673832000,-161.45,0.00011282,2]
[422955791,1779673832000,-1200.0,0.00011944,2]
[422955790,1779673832000,-191.4554308,0.00011933,2]
[422955802,1779673832000,-150.0,0.00011992,2]
[422955800,1779673832000,-1489.89,0.00011992,2]
[422955792,1779673832000,-163.49,0.00011945,2]
[422955799,1779673832000,-588.38899826,0.00011959,2]
[422955805,1779673832000,-500.0,0.00011993,3]
[422955793,1779673832000,-999.99,0.00011945,2]
[422955796,1779673832000,-150.99,0.00011945,2]
[422955795,1779673832000,-16410.74,0.00011945,2]
[422955787,1779673832000,-16.9087494,0.00010641,2]
[422955794,1779673832000,-24999.99,0.00011945,2]
[422955788,1779673832000,-160.0,0.00010777,2]
[422955786,1779673832000,-191.9217,0.00010641,2]
[422955781,1779673832000,-161.45,8.627e-05,2]
[422955783,1779673832000,-161.45,9.954e-05,2]
[422955785,1779673832000,-161.45,0.00010618,2]
[422955784,1779673832000,-408.7583,0.00010598,2]
[422955782,1779673832000,-161.45,9.291e-05,2]
[422955801,1779673832000,-175.267,0.00011992,2]
[422955797,1779673832000,-2801.93,0.00011945,2]
[422955798,1779673832000,-161.45,0.00011945,2]
[422955840,1779673832000,-150.0,0.00013488,2]
[422955808,1779673832000,-299.99,0.00011993,2]
[422955838,1779673832000,-151.99215128,0.00013488,2]
[422955809,1779673832000,-215.34753388,0.00012154,2]
[422955834,1779673832000,-150.0,0.00013424,2]
[422955836,1779673832000,-276.16960997,0.00013424,2]
[422955832,1779673832000,-150.0,0.00013424,2]
[422955830,1779673832000,-150.0,0.00013424,2]
[422955816,1779673832000,-164.42,0.00012664,2]
[422955824,1779673832000,-255.0,0.00013071,2]
[422955818,1779673832000,-924.5,0.00012712,2]
[422955826,1779673832000,-420.0,0.00013165,2]
[422955841,1779673832000,-150.0,0.00013488,2]
[422955828,1779673832000,-161.45,0.00013272,2]
[422955814,1779673832000,-191.76,0.00012641,2]
[422955812,1779673832000,-161.45,0.00012609,2]
[422955822,1779673832000,-217.8,0.00013,2]
[422955810,1779673832000,-549.33,0.00012522,2]
[422955811,1779673832000,-150.0,0.00012583,2]
[422955806,1779673832000,-500.0,0.00011993,4]
[422955804,1779673832000,-500.0,0.00011993,2]
[422955803,1779673832000,-300.0,0.00011992,2]
[422955807,1779673832000,-9999.99,0.00011993,2]
[422955821,1779673832000,-531.5918072,0.00012892,5]
[422955859,1779673833000,-150.0,0.00013987,2]
[422955850,1779673833000,-150.0,0.00013654,2]
[422955853,1779673833000,-166.66,0.00013699,2]
[422955860,1779673833000,-166.66,0.00014042,2]
[422955862,1779673833000,-150.0,0.00014154,2]
[422955857,1779673833000,-166.66,0.0001387,2]
[422955861,1779673833000,-470.85025697,0.00014072,2]
[422955858,1779673833000,-150.0,0.00013987,2]
[422955849,1779673833000,-1828.9471,0.00013598,2]
[422955843,1779673833000,-150.0,0.00013488,2]
[422955842,1779673833000,-150.0,0.00013488,2]
[422955844,1779673833000,-150.0,0.00013488,2]
[422955847,1779673833000,-503.80446207,0.00013501,2]
[422955848,1779673833000,-10000.0,0.00013598,2]
[422955845,1779673833000,-200.0,0.000135,2]
[422955846,1779673833000,-350.13,0.00013501,2]
[422955854,1779673833000,-200.0,0.00013699,2]
[422955851,1779673833000,-150.0,0.00013654,2]
[422955855,1779673833000,-150.0,0.00013821,2]
[422955874,1779673833000,-527.18928683,0.00014404,2]
[422955856,1779673833000,-150.0,0.00013821,2]
[422955881,1779673833000,-3438.15135267,0.000145,2]
[422955877,1779673833000,-253.2324834,0.00014404,2]
[422955879,1779673833000,-150.0,0.00014487,2]
[422955878,1779673833000,-587.0,0.00014452,2]
[422955875,1779673833000,-400.83916949,0.00014404,2]
[422955873,1779673833000,-750.0,0.00014404,2]
[422955880,1779673833000,-150.0,0.00014487,2]
[422955872,1779673833000,-5406.90144114,0.00014404,2]
[422955876,1779673833000,-1500.36,0.00014404,2]
[422955865,1779673833000,-166.66,0.00014214,2]
[422955868,1779673833000,-924.5,0.00014301,2]
[422955863,1779673833000,-150.0,0.00014154,2]
[422955870,1779673833000,-150.0,0.0001432,2]
[422955869,1779673833000,-150.0,0.0001432,2]
[422955852,1779673833000,-500.0,0.00013698,2]
[422955866,1779673833000,-150.0,0.00014237,2]
[422955867,1779673833000,-433.0,0.00014246,2]
[422955871,1779673833000,-166.66,0.00014386,2]
[422955864,1779673833000,-500.0,0.00014192,2]
[422955914,1779673838000,-5000.0,0.000146,2]
[422955924,1779673838000,-500.0,0.00014624,2]
[422955913,1779673838000,-1000.0,0.000146,2]
[422955910,1779673838000,-186.16687,0.00014577,2]
[422955912,1779673838000,-3365.07593643,0.00014599,2]
[422955908,1779673838000,-3365.07593643,0.00014575,2]
[422955909,1779673838000,-182.686334,0.00014577,2]
[422955911,1779673838000,-1898.94980193,0.00014579,2]
[422955922,1779673838000,-500.0,0.00014624,2]
[422955902,1779673838000,-2500.0,0.000145,2]
[422955904,1779673838000,-3365.07593647,0.00014526,2]
[422955920,1779673838000,-3365.07593643,0.00014624,2]
[422955918,1779673838000,-183.17027011,0.00014622,2]
[422955916,1779673838000,-186.81112081,0.00014622,2]
[422955915,1779673838000,-8600.45751696,0.00014622,2]
[422955905,1779673838000,-1898.94980194,0.00014526,2]
[422955903,1779673838000,-364.685482,0.00014504,2]
[422955931,1779673838000,-500.0,0.00014625,2]
[422955901,1779673838000,-6067.40275424,0.000145,2]
[422955906,1779673838000,-3365.07593643,0.0001455,2]
[422955929,1779673838000,-500.0,0.00014624,2]
[422955907,1779673838000,-166.66,0.00014557,2]
[422955927,1779673838000,-500.0,0.00014624,2]
[422955933,1779673838000,-500.0,0.00014625,2]
[422955970,1779673838000,-500.0,0.00014625,2]
[422955964,1779673838000,-500.0,0.00014625,2]
[422955962,1779673838000,-500.0,0.00014625,2]
[422955958,1779673838000,-500.0,0.00014625,2]
[422955966,1779673838000,-500.0,0.00014625,2]
[422955954,1779673838000,-500.0,0.00014625,2]
[422955956,1779673838000,-500.0,0.00014625,2]
[422955960,1779673838000,-500.0,0.00014625,2]
[422955950,1779673838000,-500.0,0.00014625,2]
[422955968,1779673838000,-500.0,0.00014625,2]
[422955948,1779673838000,-500.0,0.00014625,2]
[422955946,1779673838000,-500.0,0.00014625,2]
[422955944,1779673838000,-500.0,0.00014625,2]
[422955940,1779673838000,-504.33713482,0.00014625,2]
[422955942,1779673838000,-500.0,0.00014625,2]
[422955935,1779673838000,-500.0,0.00014625,2]
[422955926,1779673838000,-500.0,0.00014624,2]
[422955936,1779673838000,-500.0,0.00014625,2]
[422955938,1779673838000,-500.0,0.00014625,2]
[422955952,1779673838000,-500.0,0.00014625,2]
[422956017,1779673839000,-500.0,0.00014649,2]
[422956002,1779673839000,-500.0,0.00014625,2]
[422956009,1779673839000,-23934.1472345,0.00014626,2]
[422956004,1779673839000,-500.0,0.00014625,2]
[422956008,1779673839000,-109376.7292216,0.00014626,2]
[422956005,1779673839000,-500.0,0.00014625,2]
[422956001,1779673839000,-604.76416355,0.00014625,2]
[422956007,1779673839000,-2667.6120583,0.00014626,2]
[422956014,1779673839000,-1898.94980193,0.00014633,2]
[422956006,1779673839000,-4541.1877596,0.00014626,2]
[422956013,1779673839000,-268214.0273714,0.00014626,2]
[422956012,1779673839000,-726.0945132,0.00014626,2]
[422956021,1779673839000,-500.0,0.00014649,2]
[422956023,1779673839000,-150.0,0.00014653,2]
[422956016,1779673839000,-3365.07593643,0.00014648,2]
[422956015,1779673839000,-4465.30055766,0.00014633,2]
[422956020,1779673839000,-500.0,0.00014649,2]
[422956000,1779673839000,-500.0,0.00014625,2]
[422956003,1779673839000,-500.0,0.00014625,2]
[422956011,1779673839000,-4103.0814325,0.00014626,2]
[422955985,1779673839000,-500.0,0.00014625,2]
[422955997,1779673839000,-500.0,0.00014625,2]
[422955973,1779673839000,-500.0,0.00014625,2]
[422955972,1779673839000,-500.0,0.00014625,2]
[422955976,1779673839000,-500.0,0.00014625,2]
[422955986,1779673839000,-192.36518811,0.00014625,2]
[422955987,1779673839000,-500.0,0.00014625,2]
[422955988,1779673839000,-500.0,0.00014625,2]
[422955989,1779673839000,-500.0,0.00014625,2]
[422955979,1779673839000,-500.0,0.00014625,2]
[422955984,1779673839000,-500.0,0.00014625,2]
[422955982,1779673839000,-500.0,0.00014625,2]
[422955981,1779673839000,-500.0,0.00014625,2]
[422955991,1779673839000,-500.0,0.00014625,2]
[422955993,1779673839000,-500.0,0.00014625,2]
[422955992,1779673839000,-500.0,0.00014625,2]
[422955994,1779673839000,-500.0,0.00014625,2]
[422955990,1779673839000,-500.0,0.00014625,2]
[422955998,1779673839000,-500.0,0.00014625,2]
[422955999,1779673839000,-500.0,0.00014625,2]
[422955995,1779673839000,-500.0,0.00014625,2]
[422955996,1779673839000,-500.0,0.00014625,2]
[422956022,1779673839000,-150.0,0.00014653,2]
[422956010,1779673839000,-9763.3138721,0.00014626,2]
[422956019,1779673839000,-500.0,0.00014649,2]
[422956040,1779673839000,-500.0,0.00014699,2]
[422956043,1779673839000,-500.0,0.00014699,2]
[422956044,1779673839000,-618.5994779,0.00014699,2]
[422956051,1779673839000,-500.0,0.00014699,2]
[422956053,1779673839000,-500.0,0.00014699,2]
[422956052,1779673839000,-500.0,0.00014699,2]
[422956055,1779673839000,-477.16589096,0.00014699,2]
[422956064,1779673839000,-209.8159289,0.000148,2]
[422956063,1779673839000,-641.38773953,0.0001479,2]
[422956061,1779673839000,-183.17027011,0.00014761,2]
[422956018,1779673839000,-500.0,0.00014649,2]
[422956054,1779673839000,-500.0,0.00014699,2]
[422956060,1779673839000,-8600.45751694,0.00014761,2]
[422956058,1779673839000,-1898.94980193,0.0001474,2]
[422956057,1779673839000,-3365.07593643,0.00014722,2]
[422956056,1779673839000,-2500000.0,0.000147,2]
[422956059,1779673839000,-3365.07593643,0.00014746,2]
[422956066,1779673839000,-30464.55754593,0.000148,2]
[422956065,1779673839000,-1500000.0,0.000148,2]
[422956050,1779673839000,-560.10554946,0.00014699,2]
[422956046,1779673839000,-500.0,0.00014699,2]
[422956062,1779673839000,-200.0,0.00014785,2]
[422956047,1779673839000,-315.49559734,0.00014699,2]
[422956049,1779673839000,-500.0,0.00014699,2]
[422956024,1779673839000,-350.0,0.00014672,2]
[422956034,1779673839000,-500.0,0.00014699,2]
[422956031,1779673839000,-280.01721762,0.00014699,2]
[422956033,1779673839000,-500.0,0.00014699,2]
[422956026,1779673839000,-1898.94980193,0.00014686,2]
[422956025,1779673839000,-3365.07593643,0.00014673,2]
[422956028,1779673839000,-3365.07593643,0.00014697,2]
[422956035,1779673839000,-509.94837584,0.00014699,2]
[422956029,1779673839000,-2249.63230737,0.00014699,2]
[422956027,1779673839000,-641.38773953,0.0001469,2]
[422956036,1779673839000,-500.0,0.00014699,2]
[422956032,1779673839000,-500.0,0.00014699,2]
[422956037,1779673839000,-577.53986329,0.00014699,2]
[422956042,1779673839000,-506.69396339,0.00014699,2]
[422956045,1779673839000,-294.55695247,0.00014699,2]
[422956048,1779673839000,-500.0,0.00014699,2]
[422956038,1779673839000,-500.0,0.00014699,2]
[422956039,1779673839000,-500.0,0.00014699,2]
[422956041,1779673839000,-500.0,0.00014699,2]
[422956030,1779673839000,-151.2579555,0.00014699,2]
[422956081,1779673844000,-1000.04386283,0.00014793,2]
[422956085,1779673846000,-754.91977999,0.00014793,2]
[422956090,1779673847000,-699.395837,0.000148,2]
[422956087,1779673847000,-2747.01735407,0.000148,2]
[422956086,1779673847000,-143.98615911,0.00014793,2]
[422956088,1779673847000,-2000.0,0.000148,2]
[422956089,1779673847000,-151.0,0.000148,2]
[422956091,1779673847000,-699.395837,0.000148,2]
[422956093,1779673847000,-109.37408465,0.000148,2]
[422956099,1779673847000,-366.481751,0.000148,2]
[422956095,1779673847000,-366.481751,0.000148,2]
[422956096,1779673847000,-398.07288665,0.000148,2]
[422956094,1779673847000,-590.02175235,0.000148,2]
[422956097,1779673847000,-301.32295035,0.000148,2]
[422956102,1779673847000,-100.59432535,0.000148,2]
[422956100,1779673847000,-151.0,0.000148,2]
[422956098,1779673847000,-366.481751,0.000148,2]
[422956092,1779673847000,-366.481751,0.000148,2]
[422956105,1779673894000,236.26,7.662e-05,2]
[422956104,1779673894000,236.26,7.297e-05,2]
[422956103,1779673894000,236.26,6.932e-05,2]
[422956107,1779673895000,236.26,8.392e-05,2]
[422956106,1779673895000,236.26,8.027e-05,2]
[422956113,1779674373000,150.0,8.271e-05,2]
[422956118,1779674632000,153.88392468,8.527e-05,7]
[422956119,1779674699000,202.99,4.947e-05,2]
[422956120,1779674699000,202.99,5.207e-05,2]
[422956121,1779674699000,202.99,5.468e-05,2]
[422956126,1779674700000,202.99,6.769e-05,2]
[422956125,1779674700000,202.99,6.509e-05,2]
[422956124,1779674700000,202.99,6.249e-05,2]
[422956123,1779674700000,202.99,5.988e-05,2]
[422956122,1779674700000,202.99,5.728e-05,2]
[422956130,1779674701000,202.99,7.811e-05,2]
[422956129,1779674701000,202.99,7.551e-05,2]
[422956128,1779674701000,202.99,7.29e-05,2]
[422956127,1779674701000,202.99,7.03e-05,2]
[422956132,1779674702000,202.99,8.332e-05,2]
[422956131,1779674702000,202.99,8.071e-05,2]
[422956134,1779674812000,184.66070962,8.698e-05,7]
[422956135,1779674977000,167.32,7.624e-05,2]
[422956136,1779674990000,153.88392468,8.527e-05,7]
[422956153,1779675033000,-163.0,8.782e-05,2]
[422956144,1779675033000,-789.16788179,8.527e-05,2]
[422956146,1779675033000,-255.72424179,8.527e-05,2]
[422956147,1779675033000,-202.99,8.592e-05,2]
[422956148,1779675033000,-150.0,8.611e-05,2]
[422956149,1779675033000,-215.38528485,8.656e-05,2]
[422956150,1779675033000,-208.87966228,8.656e-05,2]
[422956151,1779675033000,-150.0,8.697e-05,2]
[422956154,1779675033000,-202.99,8.852e-05,2]
[422956145,1779675033000,-500.0,8.527e-05,2]
[422956157,1779675033000,-300.0,9.112e-05,2]
[422956169,1779675033000,-3228.16041772,9.113e-05,2]
[422956156,1779675033000,-300.0,9.112e-05,2]
[422956164,1779675033000,-5687.99323787,9.113e-05,2]
[422956162,1779675033000,-351.5299975,9.113e-05,2]
[422956167,1779675033000,-6771.82958228,9.113e-05,2]
[422956152,1779675033000,-236.26,8.756e-05,2]
[422956158,1779675033000,-1200.0,9.112e-05,2]
[422956159,1779675033000,-299.99,9.113e-05,2]
[422956155,1779675033000,-598.329057,9.066e-05,2]
[422956160,1779675033000,-3960.46676463,9.113e-05,2]
[422956198,1779675034000,-236.26,0.00010216,2]
[422956192,1779675034000,-999.99,9.851e-05,2]
[422956193,1779675034000,-202.99,9.894e-05,2]
[422956197,1779675034000,-837.64,0.00010212,2]
[422956196,1779675034000,-1634.0,0.00010023,2]
[422956199,1779675034000,-471.9,0.00010324,2]
[422956204,1779675034000,-1914.7,0.00010765,2]
[422956200,1779675034000,-299.19,0.00010438,2]
[422956202,1779675034000,-1681.04,0.00010577,2]
[422956195,1779675034000,-163.19,9.953e-05,2]
[422956203,1779675034000,-236.26,0.00010581,2]
[422956205,1779675034000,-255.0,0.00010835,2]
[422956208,1779675034000,-469.86,0.00011158,2]
[422956201,1779675034000,-208.08,0.00010573,2]
[422956194,1779675034000,-469.86,9.918e-05,2]
[422956188,1779675034000,-200.0,9.636e-05,2]
[422956191,1779675034000,-236.26,9.851e-05,2]
[422956207,1779675034000,-500.0,0.00011101,2]
[422956177,1779675034000,-276.99106445,9.209e-05,7]
[422956179,1779675034000,-202.99,9.373e-05,2]
[422956181,1779675034000,-305.95686984,9.38e-05,2]
[422956182,1779675034000,-236.26,9.486e-05,2]
[422956175,1779675034000,-236.26,9.121e-05,2]
[422956190,1779675034000,-150.0,9.85e-05,2]
[422956171,1779675034000,-150.99,9.113e-05,2]
[422956184,1779675034000,-1914.7,9.569e-05,2]
[422956183,1779675034000,-167.32,9.53e-05,2]
[422956185,1779675034000,-500.0,9.579e-05,2]
[422956186,1779675034000,-811.96,9.622e-05,2]
[422956187,1779675034000,-202.99,9.633e-05,2]
[422956189,1779675034000,-240.99465971,9.837e-05,2]
[422956173,1779675034000,-202.99,9.113e-05,2]
[422956206,1779675034000,-236.26,0.00010946,2]
[422956215,1779675034000,-25588.31216026,0.00011803,2]
[422956209,1779675034000,-236.26,0.0001131,2]
[422956210,1779675034000,-500.0,0.00011375,2]
[422956242,1779675034000,-603.84235597,0.00011903,2]
[422956241,1779675034000,-457.18949842,0.00011903,2]
[422956238,1779675034000,-478.50807902,0.00011903,2]
[422956240,1779675034000,-716.88532856,0.00011903,2]
[422956239,1779675034000,-1226.08351096,0.00011903,2]
[422956237,1779675034000,-17198.57241436,0.00011903,2]
[422956235,1779675034000,-1711.59719033,0.00011903,2]
[422956236,1779675034000,-6226.43661,0.00011903,2]
[422956233,1779675034000,-12850.95998808,0.00011903,2]
[422956227,1779675034000,-500.0,0.00011892,3]
[422956228,1779675034000,-500.0,0.00011892,4]
[422956232,1779675034000,-7747.73404938,0.00011903,2]
[422956229,1779675034000,-500.0,0.00011892,5]
[422956230,1779675034000,-500.0,0.00011892,6]
[422956234,1779675034000,-6057.05329214,0.00011903,2]
[422956231,1779675034000,-42878.94540284,0.00011903,2]
[422956211,1779675034000,-167.32,0.00011436,2]
[422956225,1779675034000,-151.2579555,0.00011892,2]
[422956214,1779675034000,-209.8159289,0.00011693,2]
[422956213,1779675034000,-236.26,0.00011675,2]
[422956216,1779675034000,-729.77603074,0.00011803,2]
[422956218,1779675034000,-13910.9336148,0.00011803,2]
[422956217,1779675034000,-440.0,0.00011803,2]
[422956212,1779675034000,-500.0,0.00011649,2]
[422956219,1779675034000,-11626.50451369,0.00011803,2]
[422956222,1779675034000,-151.0,0.0001189,2]
[422956221,1779675034000,-376.17697689,0.0001184,2]
[422956223,1779675034000,-151.0,0.0001189,2]
[422956224,1779675034000,-151.0,0.0001189,2]
[422956226,1779675034000,-500.0,0.00011892,2]
[422956220,1779675034000,-183.17027011,0.00011803,2]
[422956265,1779675037000,-17981.32015637,0.00012147,2]
[422956263,1779675037000,-199.0,0.00012146,2]
[422956262,1779675037000,-199.0,0.00012146,2]
[422956260,1779675037000,-236.26,0.0001204,2]
[422956261,1779675037000,-199.0,0.00012146,2]
[422956259,1779675037000,-1914.7,0.00011961,2]
[422956257,1779675037000,-472.44216363,0.00011923,2]
[422956256,1779675037000,-433.0,0.00011918,2]
[422956255,1779675037000,-1590.43557031,0.00011903,2]
[422956254,1779675037000,-1513.16049576,0.00011903,2]
[422956253,1779675037000,-747.90915539,0.00011903,2]
[422956266,1779675037000,-5284.2019003,0.00012147,2]
[422956258,1779675037000,-27.55783637,0.00011923,2]
[422956264,1779675037000,-199.0,0.00012146,2]
[422956252,1779675037000,-5400.0,0.00011903,2]
[422956269,1779675037000,-1626.05330831,0.00012147,2]
[422956267,1779675037000,-339.88265974,0.00012147,2]
[422956282,1779675037000,-504.33713482,0.0001249,2]
[422956280,1779675037000,-163.19,0.00012441,2]
[422956276,1779675037000,-159.8,0.00012329,2]
[422956275,1779675037000,-500.0,0.00012197,2]
[422956274,1779675037000,-11626.5045136,0.00012147,2]
[422956277,1779675037000,-376.17697683,0.0001235,2]
[422956281,1779675037000,-500.0,0.00012471,2]
[422956279,1779675037000,-236.26,0.00012405,2]
[422956273,1779675037000,-6805.63830564,0.00012147,2]
[422956272,1779675037000,-667.59085327,0.00012147,2]
[422956270,1779675037000,-5319.946548,0.00012147,2]
[422956271,1779675037000,-775.32092544,0.00012147,2]
[422956278,1779675037000,-469.86,0.00012398,2]
[422956268,1779675037000,-1869.06714865,0.00012147,2]
[422956327,1779675038000,-150.0,0.0001315,2]
[422956326,1779675038000,-150.0,0.0001315,2]
[422956324,1779675038000,-150.0,0.0001315,2]
[422956328,1779675038000,-150.0,0.0001315,2]
[422956321,1779675038000,-736.0,0.0001311,2]
[422956320,1779675038000,-500.0,0.00013019,2]
[422956322,1779675038000,-236.26,0.00013135,2]
[422956317,1779675038000,-40669.02180572,0.00012835,2]
[422956319,1779675038000,-376.17697683,0.0001286,2]
[422956318,1779675038000,-11626.5045136,0.00012835,2]
[422956323,1779675038000,-150.0,0.0001315,2]
[422956325,1779675038000,-150.0,0.0001315,2]
[422956332,1779675038000,-500.0,0.0001315,2]
[422956342,1779675038000,-186.458327,0.00013253,2]
[422956333,1779675038000,-500.0,0.0001315,2]
[422956330,1779675038000,-150.0,0.0001315,2]
[422956334,1779675038000,-500.0,0.0001315,2]
[422956335,1779675038000,-500.0,0.0001315,2]
[422956341,1779675038000,-240.356437,0.00013253,2]
[422956316,1779675038000,-236.26,0.0001277,2]
[422956336,1779675038000,-420.84701242,0.0001315,2]
[422956339,1779675038000,-11626.5045136,0.00013179,2]
[422956337,1779675038000,-1914.7,0.00013157,2]
[422956340,1779675038000,-191.646368,0.00013253,2]
[422956338,1779675038000,-40669.02180572,0.00013179,2]
[422956343,1779675038000,-247.044144,0.00013253,2]
[422956346,1779675038000,-160.000962,0.00013253,2]
[422956331,1779675038000,-250.0,0.0001315,2]
[422956313,1779675038000,-2082.0,0.00012677,5]
[422956307,1779675038000,-40669.02180572,0.00012491,2]
[422956314,1779675038000,-167.87,0.00012693,2]
[422956283,1779675038000,-500.0,0.0001249,2]
[422956285,1779675038000,-500.0,0.0001249,2]
[422956284,1779675038000,-500.0,0.0001249,2]
[422956288,1779675038000,-500.0,0.0001249,2]
[422956286,1779675038000,-500.0,0.0001249,2]
[422956290,1779675038000,-500.0,0.0001249,2]
[422956287,1779675038000,-500.0,0.0001249,2]
[422956289,1779675038000,-500.0,0.0001249,2]
[422956291,1779675038000,-500.0,0.0001249,2]
[422956292,1779675038000,-500.0,0.0001249,2]
[422956296,1779675038000,-500.0,0.0001249,2]
[422956295,1779675038000,-500.0,0.0001249,2]
[422956345,1779675038000,-160.000481,0.00013253,2]
[422956315,1779675038000,-500.0,0.00012745,2]
[422956293,1779675038000,-500.0,0.0001249,2]
[422956298,1779675038000,-500.0,0.0001249,2]
[422956299,1779675038000,-500.0,0.0001249,2]
[422956302,1779675038000,-500.0,0.0001249,2]
[422956303,1779675038000,-500.0,0.0001249,2]
[422956301,1779675038000,-164.73231936,0.0001249,2]
[422956304,1779675038000,-500.0,0.0001249,2]
[422956305,1779675038000,-500.0,0.0001249,2]
[422956306,1779675038000,-500.0,0.0001249,2]
[422956308,1779675038000,-4824.47894403,0.00012491,2]
[422956310,1779675038000,-796.55986639,0.00012491,2]
[422956311,1779675038000,-3596.22805072,0.00012491,2]